bitfinex/quotes_BTCUSD_20250108
["timestamp","ask_amount","ask_price","bid_price","bid_amount"]
[1736360610771,0.31751476,94690.0,94689.0,0.55019099]
[1736360611379,0.10629976,94690.0,94689.0,0.55019099]
[1736360611583,0.11229976,94690.0,94689.0,0.55119099]
[1736360611919,0.10429976,94690.0,94689.0,0.55019099]
[1736360612449,0.11329976,94690.0,94689.0,0.55119099]
[1736360612670,0.10429976,94690.0,94689.0,0.55019099]
[1736360613515,0.10829976,94690.0,94689.0,0.55019099]
[1736360613905,0.11029976,94690.0,94689.0,0.55119099]
[1736360614288,0.10429976,94690.0,94689.0,0.55019099]
[1736360614483,0.10729976,94690.0,94689.0,0.55019099]
[1736360615296,0.10729976,94690.0,94689.0,0.52819098]
[1736360615297,0.10429976,94690.0,94689.0,0.52819098]
[1736360615711,0.10729976,94690.0,94689.0,0.52819098]
[1736360616885,0.003,94690.0,94689.0,0.60569098]
[1736360617054,0.10429976,94690.0,94689.0,0.60569098]
[1736360617262,0.10729976,94690.0,94689.0,0.52819098]
[1736360617673,0.10429976,94690.0,94689.0,0.52819098]
[1736360617877,0.31551476,94690.0,94689.0,0.53019098]
[1736360618491,0.31551476,94690.0,94689.0,0.53119098]
[1736360618649,0.31551476,94690.0,94689.0,0.52919098]
[1736360618851,0.32485821,94690.0,94689.0,0.52919098]
[1736360619055,0.33085821,94690.0,94689.0,0.53019098]
[1736360620057,0.11029976,94690.0,94689.0,0.53019098]
[1736360620427,0.10429976,94690.0,94689.0,0.52919098]
[1736360620595,0.32351476,94690.0,94689.0,0.52919098]
[1736360620839,0.31551476,94690.0,94689.0,0.52819098]
[1736360621059,0.10429976,94690.0,94689.0,0.50619097]
[1736360621279,0.10629976,94690.0,94689.0,0.50619097]
[1736360621599,0.11229976,94690.0,94689.0,0.71840797]
[1736360621799,0.11029976,94690.0,94689.0,0.50719097]
[1736360622211,0.10429976,94690.0,94689.0,0.50619097]
[1736360622838,0.09439057,94721.0,94717.0,0.211153]
[1736360623045,0.10429976,94720.0,94717.0,0.68189]
[1736360623216,0.10429976,94720.0,94718.0,0.0492]
[1736360623423,0.10429976,94720.0,94719.0,0.21115]
[1736360623628,0.10429976,94720.0,94719.0,0.89303]
[1736360624192,0.10729976,94720.0,94719.0,0.89303]
[1736360624418,0.10429976,94720.0,94719.0,0.89318101]
[1736360624623,0.10729976,94720.0,94719.0,0.89318101]
[1736360625026,0.10429976,94720.0,94719.0,0.89318101]
[1736360625426,0.10429976,94720.0,94719.0,0.871181]
[1736360627092,0.08487183,94742.0,94719.0,0.871181]
[1736360627093,0.00955433,94760.0,94729.0,0.0779]
[1736360627299,0.00955433,94760.0,94745.0,0.211092]
[1736360627300,0.211068,94756.0,94745.0,0.211092]
[1736360627505,0.10509723,94755.0,94745.0,0.892822]
[1736360627731,0.211072,94754.0,94745.0,0.68173]
[1736360627936,0.10429976,94753.0,94745.0,0.68173]
[1736360628144,0.211077,94752.0,94745.0,0.68173]
[1736360628341,0.10429976,94751.0,94745.0,0.68173]
[1736360628515,0.10429976,94751.0,94745.0,0.68273]
[1736360629844,0.10429976,94751.0,94745.0,0.68173]
[1736360630392,0.10429976,94751.0,94745.0,0.65972999]
[1736360630769,0.211081,94750.0,94745.0,0.65972999]
[1736360630978,0.10509723,94749.0,94745.0,0.65972999]
[1736360631381,0.211086,94748.0,94745.0,0.65972999]
[1736360631581,0.21109,94746.0,94745.0,0.65972999]
[1736360631788,0.56538976,94746.0,94745.0,0.65972999]
[1736360632289,0.58680278,94746.0,94745.0,0.65972999]
[1736360632513,0.48680278,94746.0,94745.0,0.65972999]
[1736360632913,0.46538976,94746.0,94745.0,0.65972999]
[1736360633562,0.31538976,94746.0,94745.0,0.65972999]
[1736360633880,0.32438976,94746.0,94745.0,0.65972999]
[1736360634083,0.31838976,94746.0,94745.0,0.65972999]
[1736360634547,0.32338976,94746.0,94745.0,0.65972999]
[1736360634749,0.11229976,94746.0,94745.0,0.65972999]
[1736360635402,0.11429976,94746.0,94745.0,0.63772998]
[1736360638755,0.11429976,94746.0,94745.0,0.89692198]
[1736360639836,0.10429976,94746.0,94745.0,0.89692198]
[1736360640039,0.11229976,94746.0,94745.0,0.89692198]
[1736360640235,0.11429976,94746.0,94745.0,0.89692198]
[1736360640443,0.11429976,94746.0,94745.0,0.87492197]
[1736360640594,0.11229976,94746.0,94745.0,0.87492197]
[1736360641018,0.11229976,94746.0,94745.0,0.87592197]
[1736360641513,0.11229976,94746.0,94745.0,0.66482997]
[1736360641900,0.11229976,94746.0,94745.0,0.61672997]
[1736360642709,0.26309723,94746.0,94745.0,0.61572997]
[1736360642956,0.26350189,94746.0,94745.0,0.61572997]
[1736360643159,0.26550189,94746.0,94745.0,0.61572997]
[1736360643363,0.27350189,94746.0,94745.0,0.61672997]
[1736360644881,0.26429976,94746.0,94745.0,0.61672997]
[1736360645285,0.11429976,94746.0,94745.0,0.59472996]
[1736360646208,0.11429976,94746.0,94745.0,0.71892996]
[1736360646407,0.11229976,94746.0,94745.0,0.71892996]
[1736360646726,0.11529976,94746.0,94745.0,0.71892996]
[1736360647480,0.11229976,94746.0,94745.0,0.71892996]
[1736360647862,0.11429976,94746.0,94745.0,0.59472996]
[1736360648260,0.11509723,94746.0,94745.0,0.59472996]
[1736360648656,0.2593405,94746.0,94745.0,0.59472996]
[1736360648848,0.40854303,94746.0,94745.0,0.59472996]
[1736360649176,0.36429976,94746.0,94745.0,0.59472996]
[1736360650291,0.36429976,94746.0,94745.0,0.57272995]
[1736360650292,0.48729976,94746.0,94745.0,0.57272995]
[1736360651086,0.48729976,94746.0,94745.0,0.55148101]
[1736360651695,0.47929976,94746.0,94745.0,0.55048101]
[1736360651900,0.37929976,94746.0,94745.0,0.55048101]
[1736360652099,0.25629976,94746.0,94745.0,0.55048101]
[1736360653041,0.25429976,94746.0,94745.0,0.55048101]
[1736360653372,0.25429976,94746.0,94745.0,0.55148101]
[1736360653373,0.25929976,94746.0,94745.0,0.55148101]
[1736360653906,0.10429976,94746.0,94745.0,0.55048101]
[1736360654109,0.11329976,94746.0,94745.0,0.59738101]
[1736360654311,0.11629976,94746.0,94745.0,0.59738101]
[1736360654676,0.10429976,94746.0,94745.0,0.59738101]
[1736360654876,0.11329976,94746.0,94745.0,0.59738101]
[1736360655127,0.11529976,94746.0,94745.0,0.59738101]
[1736360655330,0.10629976,94746.0,94745.0,0.5945905]
[1736360655553,0.11029976,94746.0,94745.0,0.5945905]
[1736360656327,0.10829976,94746.0,94745.0,0.5945905]
[1736360656522,0.10929976,94746.0,94745.0,0.5945905]
[1736360656731,0.10529976,94746.0,94745.0,0.5945905]
[1736360657124,0.10629976,94746.0,94745.0,0.5945905]
[1736360657474,0.10429976,94746.0,94745.0,0.5945905]
[1736360658320,0.10429976,94746.0,94745.0,0.5955905]
[1736360658916,0.10529976,94746.0,94745.0,0.5955905]
[1736360659457,0.10529976,94746.0,94745.0,0.575381]
[1736360660025,0.10529976,94746.0,94745.0,0.576381]
[1736360660520,0.10529976,94746.0,94745.0,0.55438099]
[1736360661102,0.001,94746.0,94745.0,0.55438099]
[1736360661310,0.1,94788.0,94745.0,0.63718099]
[1736360661509,0.10429976,94779.0,94751.0,0.15]
[1736360661709,0.10429976,94779.0,94778.0,0.339019]
[1736360662033,0.10429976,94779.0,94778.0,1.195819]
[1736360662591,0.10480584,94779.0,94778.0,1.195819]
[1736360662997,0.00050608,94779.0,94778.0,1.195819]
[1736360663409,0.091,94800.0,94778.0,1.5308614]
[1736360663634,0.091,94800.0,94799.0,0.293672]
[1736360663982,0.091,94800.0,94799.0,1.150352]
[1736360664153,0.19529976,94800.0,94799.0,1.150352]
[1736360664931,0.20129976,94800.0,94799.0,1.150352]
[1736360665345,0.20129976,94800.0,94799.0,1.12835199]
[1736360665556,0.20020701,94800.0,94799.0,1.12835199]
[1736360665933,0.20220701,94800.0,94799.0,1.12835199]
[1736360666180,0.09790725,94800.0,94799.0,1.17405199]
[1736360666377,0.210874,94843.0,94827.0,0.21091]
[1736360666603,0.60429976,94828.0,94827.0,0.85652]
[1736360667684,0.501,94828.0,94827.0,0.97792]
[1736360667861,0.501,94828.0,94827.0,0.98754292]
[1736360668063,0.501,94828.0,94827.0,1.52404292]
[1736360668372,0.51,94828.0,94827.0,1.13754292]
[1736360668497,0.3729,94828.0,94827.0,1.16054292]
[1736360668703,0.210436,94828.0,94827.0,1.16054292]
[1736360669071,0.209436,94828.0,94827.0,1.16054292]
[1736360669383,0.103981,94828.0,94827.0,1.16054292]
[1736360669514,0.104981,94828.0,94827.0,1.16054292]
[1736360669717,0.0001,94868.0,94834.0,0.1]
[1736360669965,0.0001,94868.0,94837.0,0.360888]
[1736360670173,0.0001,94868.0,94837.0,1.240358]
[1736360670421,0.0001,94868.0,94837.0,1.88115776]
[1736360670941,6.28933,94838.0,94837.0,1.88115776]
[1736360671147,6.28833,94838.0,94837.0,1.88115776]
[1736360671349,6.28833,94838.0,94837.0,3.38115776]
[1736360671548,6.28933,94838.0,94837.0,3.38815776]
[1736360672365,6.28933,94838.0,94837.0,1.88815776]
[1736360672595,6.28933,94838.0,94837.0,1.89215776]
[1736360673552,6.28933,94838.0,94837.0,1.9019268]
[1736360673965,6.28933,94838.0,94837.0,1.9441608]
[1736360674295,6.28933,94838.0,94837.0,1.9019268]
[1736360677579,6.247152,94838.0,94837.0,1.9019268]
[1736360677739,6.204974,94838.0,94837.0,2.0019268]
[1736360677935,6.204974,94838.0,94837.0,3.5019268]
[1736360678324,6.120618,94838.0,94837.0,3.6796268]
[1736360679323,5.32516425,94838.0,94837.0,3.7283268]
[1736360679552,5.00209629,94838.0,94837.0,3.5986268]
[1736360679760,5.00109629,94838.0,94837.0,3.5916268]
[1736360679898,4.93882929,94838.0,94837.0,3.6046268]
[1736360680140,4.89665129,94838.0,94837.0,3.5956268]
[1736360680340,4.6997372,94838.0,94837.0,3.5916268]
[1736360680548,4.70596418,94838.0,94837.0,3.5926268]
[1736360680980,4.67487518,94838.0,94837.0,3.5916268]
[1736360681295,4.59651918,94838.0,94837.0,3.5926268]
[1736360681511,4.06876058,94838.0,94837.0,3.5926268]
[1736360681724,4.07576058,94838.0,94837.0,3.5936268]
[1736360681931,4.05467158,94838.0,94837.0,3.5936268]
[1736360682143,3.97017458,94838.0,94837.0,3.7049268]
[1736360682349,3.94908558,94838.0,94837.0,3.5936268]
[1736360682956,3.87406919,94838.0,94837.0,3.5936268]
[1736360683162,3.61181319,94838.0,94837.0,3.6686668]
[1736360683324,3.31936537,94838.0,94837.0,3.6686668]
[1736360684531,3.22206767,94838.0,94837.0,3.6686668]
[1736360684750,3.20097867,94838.0,94837.0,3.6686668]
[1736360685003,3.12988753,94838.0,94837.0,3.5936268]
[1736360685233,3.08770953,94838.0,94837.0,3.6686668]
[1736360686342,2.98226453,94838.0,94837.0,3.5686668]
[1736360686512,2.98226453,94838.0,94837.0,3.6679668]
[1736360687521,2.91899753,94838.0,94837.0,3.6679668]
[1736360687675,2.87681953,94838.0,94837.0,3.6679668]
[1736360688059,2.83464153,94838.0,94837.0,3.6679668]
[1736360688259,2.79246353,94838.0,94837.0,3.6679268]
[1736360688464,2.77137453,94838.0,94837.0,3.6679268]
[1736360688914,2.27003199,94838.0,94837.0,3.6687268]
[1736360689141,0.0001,94868.0,94867.0,0.460821]
[1736360689296,0.0001,94868.0,94867.0,0.66312076]
[1736360689517,0.0001,94868.0,94867.0,1.51942076]
[1736360689715,0.0001,94868.0,94867.0,3.01942076]
[1736360690318,0.06770788,94875.0,94874.0,0.460805]
[1736360690586,0.06770788,94875.0,94874.0,1.42136476]
[1736360690855,0.06770788,94875.0,94874.0,1.44436476]
[1736360691067,0.06770788,94875.0,94874.0,1.51916476]
[1736360691689,0.06770788,94875.0,94874.0,1.41916476]
[1736360691890,0.06770788,94875.0,94874.0,1.51916476]
[1736360692094,0.06770788,94875.0,94874.0,1.41916476]
[1736360692409,0.06770788,94875.0,94874.0,1.291865]
[1736360692844,0.06770788,94875.0,94874.0,1.299865]
[1736360693444,0.06770788,94875.0,94874.0,1.35236476]
[1736360693601,0.06770788,94875.0,94874.0,1.45336476]
[1736360694017,0.06770788,94875.0,94874.0,2.96036476]
[1736360694391,0.06770788,94875.0,94874.0,2.94436476]
[1736360694597,0.06770788,94875.0,94874.0,3.02612476]
[1736360694797,0.06770788,94875.0,94874.0,3.03512476]
[1736360696221,0.06770788,94875.0,94874.0,3.02812476]
[1736360696453,0.06770788,94875.0,94874.0,3.01786201]
[1736360696676,0.06770788,94875.0,94874.0,3.03386201]
[1736360697004,0.06770788,94875.0,94874.0,3.02486201]
[1736360697140,0.06770788,94875.0,94874.0,3.01786201]
[1736360697336,0.06770788,94875.0,94874.0,3.02686201]
[1736360697536,0.06770788,94875.0,94874.0,2.92486201]
[1736360697740,0.06770788,94875.0,94874.0,3.02486201]
[1736360697928,0.06770788,94875.0,94874.0,2.93386201]
[1736360699459,0.06770788,94875.0,94874.0,3.03386201]
[1736360700597,0.04621789,94875.0,94874.0,3.02686201]
[1736360700798,0.00405789,94875.0,94874.0,3.11786201]
[1736360701003,0.00405789,94875.0,94874.0,3.02686201]
[1736360701142,0.00405789,94875.0,94874.0,3.13486201]
[1736360703017,0.00405789,94875.0,94874.0,3.03486201]
[1736360704079,0.00405789,94875.0,94874.0,2.86010201]
[1736360704254,0.00405789,94875.0,94874.0,1.33056225]
[1736360704455,0.00405789,94875.0,94874.0,1.08280225]
[1736360705301,0.00405789,94875.0,94874.0,1.23280225]
[1736360705691,0.05235789,94875.0,94874.0,1.07480225]
[1736360706244,0.05235789,94875.0,94874.0,1.07880225]
[1736360706654,0.05235789,94875.0,94874.0,1.06980225]
[1736360707102,0.05235789,94875.0,94874.0,1.07580225]
[1736360707499,0.05235789,94875.0,94874.0,1.22580225]
[1736360707800,0.00405789,94875.0,94874.0,1.24880225]
[1736360708962,0.00405789,94875.0,94874.0,1.24480225]
[1736360709581,0.00405789,94875.0,94874.0,1.26035427]
[1736360709787,0.00405789,94875.0,94874.0,1.25435427]
[1736360710147,0.00405789,94875.0,94874.0,1.26335427]
[1736360710766,0.00376804,94875.0,94874.0,1.26335427]
[1736360712520,0.00376804,94875.0,94874.0,1.29523368]
[1736360712724,0.00276804,94875.0,94874.0,1.26335427]
[1736360713116,0.00276804,94875.0,94874.0,1.29523262]
[1736360713306,0.00176804,94875.0,94874.0,1.29523262]
[1736360713727,0.01313564,94881.0,94880.0,0.1]
[1736360713918,0.01313564,94881.0,94880.0,1.47620011]
[1736360714131,0.01313564,94881.0,94880.0,1.37620011]
[1736360714430,0.01213564,94881.0,94880.0,1.37620011]
[1736360714657,0.01213564,94881.0,94880.0,1.27190035]
[1736360715040,0.01113564,94881.0,94880.0,1.09890035]
[1736360715260,0.2406354,94881.0,94880.0,0.85623]
[1736360715458,0.2396354,94881.0,94880.0,0.70612999]
[1736360715669,0.2396354,94881.0,94880.0,0.49992999]
[1736360715670,0.2485869,94881.0,94880.0,0.49992999]
[1736360715846,0.2475869,94881.0,94880.0,0.49992999]
[1736360716049,0.2465869,94881.0,94880.0,0.49992999]
[1736360716671,0.2455869,94881.0,94880.0,0.49992999]
[1736360717163,0.2445869,94881.0,94880.0,0.49992999]
[1736360717395,0.24449421,94881.0,94880.0,0.49992999]
[1736360717632,0.24349421,94881.0,94880.0,0.49992999]
[1736360717859,0.56000033,94881.0,94880.0,0.24372999]
[1736360718101,0.55680033,94881.0,94880.0,0.00207298]
[1736360718338,0.1,94868.0,94834.0,0.210892]
[1736360718570,0.1,94868.0,94835.0,0.001]
[1736360718571,0.35329976,94868.0,94835.0,0.001]
[1736360718808,0.35229976,94868.0,94838.0,0.210884]
[1736360719019,0.35129976,94868.0,94830.0,0.213903]
[1736360719224,0.34329976,94868.0,94830.0,0.034]
[1736360719502,0.23098484,94840.0,94820.0,0.456848]
[1736360719701,0.210832,94862.0,94824.0,0.035]
[1736360719702,0.10429976,94839.0,94824.0,0.035]
[1736360719904,0.10429976,94835.0,94820.0,0.52726]
[1736360720126,0.10429976,94835.0,94819.0,0.09192151]
[1736360720127,0.44088984,94830.0,94824.0,0.52729]
[1736360720332,0.065,94844.0,94824.0,0.52729]
[1736360720333,0.10429976,94829.0,94824.0,0.50528999]
[1736360720557,0.10229976,94829.0,94824.0,0.50528999]
[1736360720908,0.10129976,94829.0,94824.0,0.50628999]
[1736360721349,0.210866,94847.0,94828.0,0.035]
[1736360721560,0.10329976,94845.0,94828.0,0.54927]
[1736360721767,0.10329976,94845.0,94830.0,0.035]
[1736360721937,0.10329976,94845.0,94830.0,0.58426]
[1736360722296,0.10329976,94845.0,94830.0,0.54926]
[1736360722756,0.10329976,94845.0,94832.0,0.210899]
[1736360722991,0.10329976,94845.0,94842.0,0.210875]
[1736360723199,0.10329976,94845.0,94844.0,0.035]
[1736360723200,0.10729976,94845.0,94844.0,0.035]
[1736360723409,0.004,94845.0,94844.0,0.58418]
[1736360723818,0.09437253,94877.0,94862.0,0.210831]
[1736360724023,0.10429976,94876.0,94862.0,0.54908]
[1736360724437,0.10429976,94876.0,94862.0,0.58408]
[1736360724593,0.10429976,94876.0,94862.0,0.54908]
[1736360724993,0.10480625,94876.0,94862.0,0.58408]
[1736360725192,0.10480625,94876.0,94864.0,0.035]
[1736360725398,0.10480625,94876.0,94864.0,0.58407]
[1736360725602,0.10480625,94876.0,94865.0,0.210825]
[1736360725842,0.10480625,94876.0,94865.0,0.54906]
[1736360726253,0.10480625,94876.0,94865.0,0.759885]
[1736360726553,0.10980625,94876.0,94870.0,0.210814]
[1736360726843,0.10480625,94876.0,94870.0,0.759854]
[1736360727337,0.10480625,94876.0,94870.0,0.54904]
[1736360727477,0.10880625,94876.0,94871.0,0.210812]
[1736360727828,0.10880625,94876.0,94871.0,0.759842]
[1736360728186,0.00450649,94876.0,94875.0,0.01299999]
[1736360728377,0.00450649,94876.0,94875.0,0.56200999]
[1736360728796,0.00450649,94876.0,94875.0,0.54901]
[1736360729037,0.00450649,94876.0,94875.0,0.56200999]
[1736360729491,0.00050649,94876.0,94875.0,0.56200999]
[1736360729689,0.00050649,94876.0,94875.0,0.73500999]
[1736360730314,0.00050649,94876.0,94875.0,0.7450366]
[1736360730503,0.00050649,94876.0,94875.0,0.7510366]
[1736360730710,0.00050649,94876.0,94875.0,2.2480366]
[1736360731116,0.00050649,94876.0,94875.0,2.2540366]
[1736360731314,0.00050649,94876.0,94875.0,2.2510366]
[1736360731511,0.00050649,94876.0,94875.0,2.3005366]
[1736360732581,0.00050649,94876.0,94875.0,2.2775366]
[1736360732736,0.00050649,94876.0,94875.0,0.7865366]
[1736360732939,0.00050649,94876.0,94875.0,0.7775366]
[1736360733134,0.00050649,94876.0,94875.0,0.75853661]
[1736360733374,0.00050649,94876.0,94875.0,0.7805366]
[1736360733544,0.00050649,94876.0,94875.0,0.7875366]
[1736360733969,0.00050649,94876.0,94875.0,0.7805366]
[1736360734219,0.00050649,94876.0,94875.0,0.7715366]
[1736360734420,0.00050649,94876.0,94875.0,0.7865366]
[1736360734774,0.00050649,94876.0,94875.0,0.7805366]
[1736360735833,0.00050649,94876.0,94875.0,0.7715366]
[1736360736405,0.00050649,94876.0,94875.0,0.7775366]
[1736360736622,0.00050649,94876.0,94875.0,0.7865366]
[1736360736854,0.3961229,94881.0,94880.0,0.01299999]
[1736360737052,0.3961229,94881.0,94880.0,0.56197999]
[1736360738064,0.3961229,94881.0,94880.0,0.56697999]
[1736360739306,0.3961229,94881.0,94880.0,0.57597999]
[1736360740043,0.3961229,94881.0,94880.0,0.56298]
[1736360740473,0.3961229,94881.0,94880.0,0.55798]
[1736360740707,0.3961229,94881.0,94880.0,0.54898]
[1736360740933,0.3961229,94881.0,94880.0,0.55698]
[1736360741383,0.3961229,94881.0,94880.0,0.56997999]
[1736360741600,0.3961229,94881.0,94880.0,0.56697999]
[1736360742543,0.3961229,94881.0,94880.0,0.56197999]
[1736360742768,0.50042266,94881.0,94880.0,0.55198]
[1736360743261,0.50042266,94881.0,94880.0,0.54898]
[1736360743481,0.50042266,94881.0,94880.0,0.55598]
[1736360743691,0.50042266,94881.0,94880.0,0.55898]
[1736360744024,0.50042266,94881.0,94880.0,0.55198]
[1736360745010,0.50042266,94881.0,94880.0,0.759772]
[1736360745422,0.50042266,94881.0,94880.0,0.52697999]
[1736360746003,0.50042266,94881.0,94880.0,0.53697999]
[1736360746223,0.50042266,94881.0,94880.0,0.74077199]
[1736360746654,0.3961229,94881.0,94880.0,0.75577198]
[1736360746861,0.3961229,94881.0,94880.0,0.75377198]
[1736360747267,0.3961229,94881.0,94880.0,0.75277198]
[1736360747396,0.3961229,94881.0,94880.0,0.75077198]
[1736360747586,0.3961229,94881.0,94880.0,0.75377198]
[1736360747781,0.3961229,94881.0,94880.0,0.88347198]
[1736360748013,0.3961229,94881.0,94880.0,1.03047198]
[1736360748384,0.3961229,94881.0,94880.0,1.03347198]
[1736360748813,0.3961229,94881.0,94880.0,1.03047198]
[1736360749017,0.3939229,94881.0,94880.0,1.02847198]
[1736360749247,0.3939229,94881.0,94880.0,1.03447198]
[1736360749452,0.3939229,94881.0,94880.0,1.03947198]
[1736360749657,0.3939229,94881.0,94880.0,1.03447198]
[1736360750091,0.3939229,94881.0,94880.0,1.04347198]
[1736360750467,0.3939229,94881.0,94880.0,1.06647198]
[1736360750674,0.3939229,94881.0,94880.0,1.17077174]
[1736360751094,0.3939229,94881.0,94880.0,1.16477174]
[1736360751539,0.3939229,94881.0,94880.0,1.17177174]
[1736360751692,0.00304295,94881.0,94880.0,1.17177174]
[1736360753578,0.00027766,94910.0,94909.0,0.22372799]
[1736360753999,0.00027766,94910.0,94909.0,0.94454799]
[1736360754212,0.00027766,94910.0,94909.0,1.07184775]
[1736360754634,7e-05,94928.0,94927.0,0.37368799]
[1736360754852,7e-05,94928.0,94927.0,1.26986775]
[1736360755063,7e-05,94928.0,94927.0,1.16556799]
[1736360755288,7e-05,94928.0,94927.0,0.905208]
[1736360755526,7e-05,94928.0,94927.0,0.79440799]
[1736360756280,0.10436976,94928.0,94927.0,0.57072]
[1736360756760,0.10436976,94928.0,94927.0,0.57672]
[1736360757267,0.10436976,94928.0,94927.0,0.58072]
[1736360757495,0.10436976,94928.0,94927.0,0.57672]
[1736360758217,7e-05,94928.0,94927.0,0.57672]
[1736360758449,7e-05,94928.0,94927.0,0.58371999]
[1736360758696,7e-05,94928.0,94927.0,0.58471999]
[1736360758932,7e-05,94928.0,94927.0,0.59492894]
[1736360759139,7e-05,94928.0,94927.0,0.59392894]
[1736360759628,7e-05,94928.0,94927.0,0.59792894]
[1736360759870,7e-05,94928.0,94927.0,0.54792894]
[1736360760318,7e-05,94928.0,94927.0,0.54392894]
[1736360760565,7e-05,94928.0,94927.0,0.54792894]
[1736360760806,7e-05,94928.0,94927.0,0.54392894]
[1736360761063,7e-05,94928.0,94927.0,0.69392894]
[1736360761574,7e-05,94928.0,94927.0,0.8262287]
[1736360761820,0.15375483,94990.0,94936.0,0.26299999]
[1736360762079,0.15375483,94990.0,94937.0,0.15349976]
[1736360762347,0.1,95006.0,94973.0,0.22358599]
[1736360762613,0.01011724,95002.0,94973.0,0.22358599]
[1736360762854,0.02102868,94993.0,94973.0,0.84405599]
[1736360763200,0.12781408,95010.0,94973.0,0.63346999]
[1736360763407,0.10429976,95008.0,94990.0,0.210546]
[1736360763605,0.1048072,95008.0,94990.0,0.830916]
[1736360763815,0.1048072,95008.0,94990.0,0.62037]
[1736360763816,0.02144651,95003.0,94990.0,0.62037]
[1736360764042,0.00050744,95008.0,95007.0,0.21051]
[1736360764420,0.1048072,95008.0,95007.0,0.83079]
[1736360764878,0.00050744,95008.0,95007.0,0.83079]
[1736360765081,0.00050744,95008.0,95007.0,0.97884215]
[1736360765365,4.4e-07,95008.0,95007.0,1.0841419]
[1736360765510,4.4e-07,95008.0,95007.0,1.1841419]
[1736360765709,4.4e-07,95008.0,95007.0,1.3341419]
[1736360765933,0.1365554,95023.0,95022.0,0.22347699]
[1736360766140,0.1365554,95023.0,95022.0,0.91798699]
[1736360766335,0.1365554,95023.0,95022.0,0.94796675]
[1736360766539,0.1365554,95023.0,95022.0,1.02228675]
[1736360766897,0.12850195,95023.0,95022.0,1.04528675]
[1736360767345,0.12850195,95023.0,95022.0,1.03028675]
[1736360767549,0.12850195,95023.0,95022.0,0.85166699]
[1736360767718,0.12850195,95023.0,95022.0,0.84366699]
[1736360768126,0.12850195,95023.0,95022.0,0.85266699]
[1736360768343,0.12850195,95023.0,95022.0,0.62019]
[1736360768573,0.12850195,95023.0,95022.0,0.62519]
[1736360769219,0.12850195,95023.0,95022.0,0.62019]
[1736360769672,0.12850195,95023.0,95022.0,0.62319]
[1736360769803,0.12850195,95023.0,95022.0,0.63119]
[1736360770001,0.12850195,95023.0,95022.0,0.62319]
[1736360770207,0.12850195,95023.0,95022.0,0.62019]
[1736360770429,0.12850195,95023.0,95022.0,0.60318999]
[1736360770630,0.12850195,95023.0,95022.0,0.60118999]
[1736360771014,0.23280171,95023.0,95022.0,0.60118999]
[1736360771247,0.23280171,95023.0,95022.0,0.58078207]
[1736360771461,0.32999515,95023.0,95022.0,0.47206284]
[1736360771790,0.32999515,95023.0,95022.0,0.43795284]
[1736360771791,0.35112688,95023.0,95022.0,0.43795284]
[1736360772051,0.35112688,95023.0,95022.0,0.43495284]
[1736360772241,0.26412687,95023.0,95022.0,0.43495284]
[1736360772400,0.25393344,95023.0,95022.0,0.43695284]
[1736360772804,0.25393344,95023.0,95022.0,0.43495284]
[1736360773075,0.25393344,95023.0,95022.0,0.43395284]
[1736360774047,0.25393344,95023.0,95022.0,0.43495284]
[1736360774369,0.25393344,95023.0,95022.0,0.43395284]
[1736360774578,0.25393344,95023.0,95022.0,0.43495284]
[1736360775012,0.44523321,95023.0,95022.0,0.43395284]
[1736360775436,0.44523321,95023.0,95022.0,0.41195283]
[1736360775637,0.34093345,95023.0,95022.0,0.41195283]
[1736360775839,0.44093345,95023.0,95022.0,0.41195283]
[1736360776576,0.44093345,95023.0,95022.0,0.41295283]
[1736360777480,0.25393344,95023.0,95022.0,0.41195283]
[1736360777674,0.42368071,95023.0,95022.0,0.41295283]
[1736360777884,0.42368071,95023.0,95022.0,0.41195283]
[1736360778088,0.31938095,95023.0,95022.0,0.42495282]
[1736360778216,0.31938095,95023.0,95022.0,0.42595282]
[1736360778868,0.42368071,95023.0,95022.0,0.41295283]
[1736360779275,0.42368071,95023.0,95022.0,0.42895282]
[1736360779276,0.31938095,95023.0,95022.0,0.42895282]
[1736360779665,0.31938095,95023.0,95022.0,0.42795282]
[1736360779835,0.31938095,95023.0,95022.0,0.42495282]
[1736360780192,0.31938095,95023.0,95022.0,0.42595282]
[1736360780399,0.31938095,95023.0,95022.0,0.40595281]
[1736360780996,0.42368071,95023.0,95022.0,0.39295282]
[1736360781794,0.42368071,95023.0,95022.0,0.39195282]
[1736360782000,0.42368071,95023.0,95022.0,0.38995282]
[1736360782569,0.42368071,95023.0,95022.0,0.39395282]
[1736360782997,0.42368071,95023.0,95022.0,0.38995282]
[1736360783403,0.42368071,95023.0,95022.0,0.39395282]
[1736360784247,0.42368071,95023.0,95022.0,0.38995282]
[1736360785384,0.42368071,95023.0,95022.0,0.36795281]
[1736360787203,0.42368071,95023.0,95022.0,0.44305281]
[1736360787611,0.42368071,95023.0,95022.0,0.44505281]
[1736360788216,0.42368071,95023.0,95022.0,0.36995281]
[1736360788830,0.35114239,95023.0,95022.0,0.36995281]
[1736360789325,0.24684263,95023.0,95022.0,0.3809528]
[1736360790105,0.35114239,95023.0,95022.0,0.36795281]
[1736360790363,0.35114239,95023.0,95022.0,0.3499528]
[1736360790568,0.35114239,95023.0,95022.0,0.3539528]
[1736360790692,0.35114239,95023.0,95022.0,0.3499528]
[1736360791253,0.35114239,95023.0,95022.0,0.3539528]
[1736360791535,0.35114239,95023.0,95022.0,0.3499528]
[1736360792283,0.35114239,95023.0,95022.0,0.3459528]
[1736360792552,0.4381424,95023.0,95022.0,0.3499528]
[1736360792758,0.5381424,95023.0,95022.0,0.3499528]
[1736360792955,0.45114239,95023.0,95022.0,0.3499528]
[1736360793166,0.45114239,95023.0,95022.0,0.3459528]
[1736360793333,0.5381424,95023.0,95022.0,0.3459528]
[1736360793544,0.64112893,95023.0,95022.0,0.3458528]
[1736360793772,0.69804527,95023.0,95022.0,0.3468528]
[1736360793976,0.36104526,95023.0,95022.0,0.3468528]
[1736360794153,0.35114239,95023.0,95022.0,0.3458528]
[1736360794405,0.35114239,95023.0,95022.0,0.3468528]
[1736360794864,0.35114239,95023.0,95022.0,0.3458528]
[1736360795071,0.35114239,95023.0,95022.0,0.3468528]
[1736360795537,0.35114239,95023.0,95022.0,0.32485279]
[1736360796234,0.35114239,95023.0,95022.0,0.32385279]
[1736360797258,0.68905034,95023.0,95022.0,0.32485279]
[1736360797467,0.79928519,95023.0,95022.0,0.32485279]
[1736360797675,0.79928519,95023.0,95022.0,0.32385279]
[1736360798087,0.79928519,95023.0,95022.0,0.32485279]
[1736360798293,0.79928519,95023.0,95022.0,0.09394539]
[1736360799122,0.36137724,95023.0,95022.0,0.09394539]
[1736360799356,0.35114239,95023.0,95022.0,0.09294539]
[1736360799559,0.35072706,95023.0,95022.0,0.09294539]
[1736360799983,0.35072706,95023.0,95022.0,0.09394539]
[1736360800387,0.35072706,95023.0,95022.0,0.09294539]